Cogmind - Beta 13 @@@ ROGUE MODE // 2024.05.28 @ 17:13:59 Player: JackZewap Result: Destroyed by H-77 Assassin with High-powered Shotgun Performance ------------- Evolutions (7) 3500 Regions Visited (16) 3200 Robots Destroyed (73) 365 Value Destroyed (2047) 2047 Prototype IDs (33) 660 Alien Tech Used (2) 400 Bonus (880) 880 TOTAL SCORE: 11052 Bonus ------- Follower Combat Kills 80 Entered DSFs 500 Met Zhirov 300 Cogmind --------- Core Integrity 0/1300 Matter 222/300 Energy 106/150 System Corruption 0% Temperature Cool (0) Movement Flying (39) Location -3/DSF Parts ------- > --- POWER (2) -------- Micro Antimatter Reactor > --- PROPULSION (7) --- Field Propulsion Drive Impulse Thruster Array Impulse Thruster Array > --- UTILITY (10) ----- Advanced Thermal Generator Enhanced Optical Array Advanced Melee Analysis Suite Improved Hacking Suite > --- WEAPON (2) ------- Enhanced Force Lance Enhanced Force Lance > --- INVENTORY (5) ---- Field Propulsion Drive Impulse Thruster Array Improved Trap Extractor (0/6) Enhanced Force Lance Peak State ------------ > --- POWER ------------ Light Antimatter Reactor Reinforced Antimatter Reactor > --- PROPULSION ------- Myomer Leg Myomer Leg Xenon Bombardment Thruster Xenon Bombardment Thruster Xenon Bombardment Thruster Xenon Bombardment Thruster Xenon Bombardment Thruster > --- UTILITY ---------- Enhanced Optical Array Advanced Melee Analysis Suite Improved Target Analyzer Advanced Target Analyzer Core Analyzer Graphene Brace Improved Hacking Suite > --- WEAPON ----------- Heavy Dispersion Rifle Heavy Dispersion Rifle > --- INVENTORY -------- Reinforced Antimatter Reactor Advanced ECM Suite Improved Trap Extractor [Rating: 105] Favorites ----------- Power Light Nuclear Core Engine Light Ion Engine Power Core Light Nuclear Core Reactor Antimatter Reactor Propulsion Gravmag System Treads Light Treads Leg Myomer Leg Wheel Wheel Hover Unit Gravmag System Flight Unit Nuclear Pulse Array Utility Advanced Melee Analysis Suite Device Improved Terrain Scanner Storage Small Storage Unit Processor Advanced Melee Analysis Suite Hackware Hacking Suite Protection Improved Propulsion Shielding Weapon Heavy Hammer Energy Gun EM Pulse Gun Energy Cannon EM Pulse Cannon Ballistic Gun Enhanced Autogun Launcher Rocket Launcher Special Weapon Molecular Deconstructor Impact Weapon Heavy Hammer Slashing Weapon Phasing Sabre Piercing Weapon Force Lance Build | -11 -10 -10 -9 -8 -7 -6 -5 -5 -5 -5 -5 -5 -4 -4 -3 -3 ------- Run | Yrd Mat Min Mat Mat Fac Fac Fac Was Fac Upp Upp Zhi Pro Fac Res DSF Slots Evolved 14 | . . . 2 2 2 2 2 . . . . . . 2 2 . Power 1 | . . . . 1 . . . . . . . . . . . . Propulsion 5 | . . . . 1 1 . . . . . . . . 1 2 . Utility 8 | . . . 2 . 1 2 2 . . . . . . 1 . . Weapon . | . . . . . . . . . . . . . . . . . Parts Attached 224 | 13 . 4 27 14 8 12 11 2 2 4 5 18 5 65 3 31 Power 40 | 1 . . 3 5 . 8 1 . . 1 1 6 . 8 . 6 Engine 12 | 1 . . 3 5 . 2 . . . 1 . . . . . . Core 17 | . . . . . . 6 1 . . . 1 3 . 6 . . Reactor 11 | . . . . . . . . . . . . 3 . 2 . 6 Propulsion 73 | 8 . 2 7 1 5 . 3 2 . . 1 5 2 22 . 15 Treads 3 | 2 . . . . . . . . . . . . . 1 . . Leg 7 | . . . . . . . . . . . . . . 5 . 2 Wheel 8 | 6 . 2 . . . . . . . . . . . . . . Hover 20 | . . . . . 4 . 1 . . . . . . 15 . . Flight 35 | . . . 7 1 1 . 2 2 . . 1 5 2 1 . 13 Utility 74 | 2 . . 10 6 2 4 7 . 2 . 3 7 2 25 3 1 Device 32 | 1 . . 4 1 . 1 4 . . . 3 2 1 14 . 1 Storage 7 | 1 . . 2 1 1 . . . . . . 2 . . . . Processor 20 | . . . 4 . 1 3 3 . 2 . . . . 6 1 . Hackware 6 | . . . . 2 . . . . . . . 2 . . 2 . Protection 9 | . . . . 2 . . . . . . . 1 1 5 . . Artifact . | . . . . . . . . . . . . . . . . . Weapon 37 | 2 . 2 7 2 1 . . . . 3 . . 1 10 . 9 Energy Gun 12 | 2 . 1 . . . . . . . . . . . 5 . 4 Energy Cannon 6 | . . . 6 . . . . . . . . . . . . . Ballistic Gun 5 | . . . . 2 . . . . . . . . . 3 . . Ballistic Cannon . | . . . . . . . . . . . . . . . . . Launcher 1 | . . 1 . . . . . . . . . . . . . . Special Weapon 1 | . . . . . . . . . . . . . 1 . . . Impact Weapon 2 | . . . 1 . 1 . . . . . . . . . . . Slashing Weapon 4 | . . . . . . . . . . 3 . . . 1 . . Piercing Weapon 6 | . . . . . . . . . . . . . . 1 . 5 Special Melee Weapon . | . . . . . . . . . . . . . . . . . Unidentified Prototypes 14 | . . . 2 1 . . . 1 . . . 6 1 2 . 1 Corrupted Parts 1 | . . . . . . . . . . . . . . 1 . . System Corruption 10 | . . . . . . . . . . . . . . 10 . . Parts Lost 81 | . . 4 2 1 . 1 4 . 1 1 . . 4 41 . 22 Power 15 | . . 1 1 1 . . 1 . 1 1 . . 1 5 . 3 Propulsion 29 | . . 2 . . . . 1 . . . . . 2 16 . 8 Utility 30 | . . . 1 . . 1 2 . . . . . 1 18 . 7 Weapon 7 | . . 1 . . . . . . . . . . . 2 . 4 Highest Loss Streak 13 | . . 3 1 1 . 1 4 . 1 1 . . 4 13 . 13 To Critical Strikes . | . . . . . . . . . . . . . . . . . Average Slot Usage (%) 80 | . 100 84 84 78 90 92 88 76 74 71 78 88 85 72 38 57 Engine 1 | . 14 3 3 11 7 . . . . . . . . . . . Core 4 | . . . . . . 10 9 5 3 . 3 4 4 4 . . Wheel 3 | . 28 25 17 . . . . . . . . . . . . . Hover 8 | . . . . . 20 26 21 . . . . . . 10 . . Flight 5 | . . . 4 27 7 . . 11 11 11 11 15 16 . . 8 Device 8 | . 14 14 10 8 7 5 13 5 5 5 3 1 4 10 14 6 Storage 5 | . 14 14 11 . 4 6 5 5 5 5 5 5 5 1 . . Processor 19 | . . . 19 . 2 12 13 29 29 29 29 29 29 27 23 20 Hackware 7 | . . . . 10 15 13 11 11 11 11 11 14 11 2 . 5 Protection 2 | . . . . 7 7 6 4 . . . . . . 3 . . Energy Gun 1 | . 28 24 . . . . . . . . . . . 2 . 3 Energy Cannon 2 | . . . 17 . . . . . . . . . . . . . Impact Weapon 2 | . . . . 9 7 6 5 5 5 4 . . . . . . Slashing Weapon 1 | . . . . . . . . . . 1 11 11 7 1 . . Naked Turns . | . . . . . . . . . . . . . . . . . Heaviest Build 63 | 13 13 13 30 17 19 29 39 14 14 19 23 36 20 54 3 63 Greatest Support 87 | 40 26 26 20 15 36 36 36 26 26 26 26 26 31 87 3 53 Greatest Overweight (x) 12 | 1 . . 5 1 1 . 1 . . 1 1 1 . 3 . 12 Average Overweight (x) . | . . . . . . . . . . . . . . . . 1 Largest Inventory Capacity 10 | 8 8 8 10 8 8 8 8 8 8 8 8 8 8 8 5 5 Average Capacity 7 | 7 8 8 8 5 6 8 8 8 8 8 8 7 8 5 5 5 Most Carried 10 | 8 7 8 10 5 8 8 8 8 8 8 8 8 8 8 5 5 Average Carried 6 | 3 6 7 8 3 5 7 6 7 8 8 7 7 7 5 4 2 Final Capacity 8 | 8 8 8 5 5 8 8 8 8 8 8 8 8 8 5 5 5 Final Carried 8 | 6 7 8 4 5 8 8 8 8 8 8 8 8 7 5 2 5 Class Distribution -------------------- 38% | Hacker-Mutant 36% | Mutant 10% | Hacker-Gladiator 9% | Scavenger-Mutant 4% | Hacker-Sprinter Dominant Class ---------------- Mutant | -10/Materials Mutant | -10/Mines Mutant | -9/Materials Mutant | -8/Materials Hacker-Mutant | -7/Factory Hacker-Mutant | -6/Factory Hacker-Mutant | -5/Factory Hacker-Mutant | -5/Waste Hacker-Mutant | -5/Factory Hacker-Mutant | -5/Upper Caves Hacker-Gladiator | -5/Upper Caves Hacker-Gladiator | -5/Zhirov Hacker-Sprinter | -4/Proximity Caves Mutant | -4/Factory Mutant | -3/Research Scavenger-Mutant | -3/DSF Resources | -11 -10 -10 -9 -8 -7 -6 -5 -5 -5 -5 -5 -5 -4 -4 -3 -3 ----------- Run | Yrd Mat Min Mat Mat Fac Fac Fac Was Fac Upp Upp Zhi Pro Fac Res DSF Matter Collected 2293 | 306 24 79 232 23 . 1 178 . . 86 201 217 . 791 . 155 Remotely . | . . . . . . . . . . . . . . . . . Salvage Created 3278 | 317 39 144 479 107 . . 356 . . 22 212 415 . 992 . 195 Parts 156 | 26 4 13 36 10 . . 5 . . . 2 4 . 45 . 11 Haulers Intercepted 2 | . . . 1 1 . . . . . . . . . . . . Recyclers Shooed . | . . . . . . . . . . . . . . . . . Parts Field Recycled 5 | . . . . . . . 5 . . . . . . . . . Retrieved Matter 157 | . . . . . . . 157 . . . . . . . . . Parts Self-Destructed 13 | . . . . . . . . . . 3 5 2 3 . . . Prevented 3 | . . . . . . . . . . 3 . . . . . . Kills | -11 -10 -10 -9 -8 -7 -6 -5 -5 -5 -5 -5 -5 -4 -4 -3 -3 ------- Run | Yrd Mat Min Mat Mat Fac Fac Fac Was Fac Upp Upp Zhi Pro Fac Res DSF Combat Hostiles Destroyed 42 | . . 2 12 3 . . 6 . . 1 . . . 14 . 4 Melee 17 | . . . . 3 . . 4 . . 1 . . . 9 . . Guns 9 | . . . . . . . . . . . . . . 5 . 4 Cannons 10 | . . . 10 . . . . . . . . . . . . . AOE 4 | . . 2 2 . . . . . . . . . . . . . Classes Destroyed 14 | 3 2 2 3 . . . 1 . . . 1 . . 1 . 1 Worker 5 | 2 . 1 2 . . . . . . . . . . . . . Builder 3 | . . 2 . . . . . . . . . . . 1 . . Tunneler 10 | 8 . 1 . . . . 1 . . . . . . . . . Hauler 2 | . . . 1 1 . . . . . . . . . . . . Recycler 3 | 1 . . . . . . 1 . . . . . . 1 . . Minesweeper 1 | . . . . . . . . . . . 1 . . . . . Operator 2 | . 1 . . 1 . . . . . . . . . . . . Watcher 5 | . 1 . 3 . . . 1 . . . . . . . . . Swarmer 21 | . . . 8 3 . . 4 . . 1 . . . 3 . 2 Grunt 4 | . . . 2 . . . . . . . . . . 2 . . Sentry 7 | . . 2 2 . . . . . . . . . . 3 . . Specialist 2 | . . . . . . . . . . . . . . . . 2 Hunter 4 | . . . . . . . . . . . . . . 4 . . Programmer 4 | . . . . . . . 2 . . . . . . 2 . . Best Kill Streak 5 | 4 1 4 4 3 . . 5 . . 1 1 . . 5 . 2 Combat Bots Only 4 | . . 2 4 3 . . 4 . . 1 . . . 4 . 2 Max Kills in Single Turn 2 | 1 1 1 2 1 . . 1 . . 1 1 . . 1 . 1 Gunslinging . | . . . . . . . . . . . . . . . . . Exploded 2 | . . 1 2 . . . . . . . . . . . . . Melee 1 | . . . . 1 . . 1 . . 1 . . . 1 . . Uniques/NPCs Destroyed . | . . . . . . . . . . . . . . . . . Combat | -11 -10 -10 -9 -8 -7 -6 -5 -5 -5 -5 -5 -5 -4 -4 -3 -3 -------- Run | Yrd Mat Min Mat Mat Fac Fac Fac Was Fac Upp Upp Zhi Pro Fac Res DSF Hostile Shots Fired 1281 | . . 12 44 44 6 22 39 . 11 46 4 . 84 413 . 556 Missed 540 | . . 2 10 24 4 14 12 . 5 25 2 . 49 139 . 254 Damage Taken 10773 | 39 . 206 298 225 17 132 506 . 95 352 29 . 609 4912 . 3353 Core 2821 | . . 30 110 63 . 11 59 . . 140 15 . 49 1043 . 1301 Absorbed by Shields 160 | . . . . . . . 5 . . . 10 . . 145 . . Redirected to Shielding 270 | . . . . 5 . 26 76 . . . . . . 163 . . Ignored by Resistances 89 | . . . . . . . . . . . . . 38 51 . . Regen/Repaired (Parts) 15 | . . . . 15 . . . . . . . . . . . . Core Remaining (%) 77 | 100 . 88 72 88 100 98 . . . . . . 66 9 . . Volleys Fired 106 | 16 4 11 26 6 . . . . . . . . 3 27 . 13 Largest 2 | 2 2 2 2 1 . . . . . . . . 1 2 . 2 Hottest 188 | 80 80 80 136 20 . . . . . . . . . 124 . 188 Shots Fired 172 | 32 8 16 37 6 . . . . . . . . 3 50 . 20 Gun 128 | 32 8 12 . 6 . . . . . . . . . 50 . 20 Cannon 37 | . . . 37 . . . . . . . . . . . . . Launcher 4 | . . 4 . . . . . . . . . . . . . . Special 3 | . . . . . . . . . . . . . 3 . . . Kinetic 45 | . . . . 6 . . . . . . . . . 39 . . Thermal 48 | . . . 17 . . . . . . . . . . 11 . 20 Explosive 4 | . . 4 . . . . . . . . . . . . . . Electromagnetic 72 | 32 8 12 20 . . . . . . . . . . . . . Robot Hit Streak 26 | 9 10 4 26 6 . . . . . . . . . 8 . 13 Robot Miss Streak 7 | 2 4 2 1 . . . . . . . . . . 7 . 2 Penetration Max 1 | . . . . . . . . . . . . . . 1 . . Secondary Targets . | . . . . . . . . . . . . . . . . . Shots Hit Robots 204 | 24 3 9 29 13 . . 28 . . 1 6 6 . 69 . 16 Core Hits 90 | 12 2 8 16 6 . . 2 . . . 1 3 . 34 . 6 Critical Kills 5 | . . . . . . . 1 . . . . . . 3 . 1 Critical Parts Destroyed 13 | . . . . . . . 2 . . 1 . . . 6 . 4 Critical Strikes 28 | . . . 1 . . . 3 . . 1 . . . 18 . 5 Burn 2 | . . . . . . . . . . . . . . 2 . . Destroy 14 | . . . . . . . . . . . . . . 9 . 5 Corrupt 1 | . . . 1 . . . . . . . . . . . . . Smash 4 | . . . . . . . 3 . . 1 . . . . . . Sever 5 | . . . . . . . . . . . . . . 5 . . Impale 2 | . . . . . . . . . . . . . . 2 . . Melee Attacks 205 | . . . 3 21 16 18 52 . 4 2 17 7 2 57 . 6 Impact 116 | . . . 3 21 16 18 52 . 4 2 . . . . . . Slashing 61 | . . . . . . . . . . . 17 7 2 35 . . Piercing 28 | . . . . . . . . . . . . . . 22 . 6 Sneak Attacks 5 | . . . . 1 . . 2 . . . 1 . . 1 . . Combat Hostiles 1 | . . . . . . . . . . . . . . 1 . . Follow-up Attacks . | . . . . . . . . . . . . . . . . . Damage Inflicted 7712 | 399 62 249 949 264 . . 1362 . . 37 512 644 . 2754 . 480 Guns 1832 | 330 62 85 . 40 . . . . . . . . . 835 . 480 Cannons 825 | . . . 825 . . . . . . . . . . . . . Explosions 357 | 69 . 164 124 . . . . . . . . . . . . . Melee 4685 | . . . . 224 . . 1362 . . 37 512 644 . 1906 . . Ramming 13 | . . . . . . . . . . . . . . 13 . . Kinetic 813 | . . . . 40 . . . . . . . . . 773 . . Thermal 1061 | 69 . 36 414 . . . . . . . . . . 62 . 480 Explosive 128 | . . 128 . . . . . . . . . . . . . . Electromagnetic 1012 | 330 62 85 535 . . . . . . . . . . . . . Impact 1623 | . . . . 224 . . 1362 . . 37 . . . . . . Slashing 2455 | . . . . . . . . . . . 512 644 . 1299 . . Piercing 607 | . . . . . . . . . . . . . . 607 . . Highest Corruption 15 | . . . . . . . 5 14 14 15 15 15 15 12 . . Average Corruption 11 | . . . . . . . 4 10 14 14 15 15 15 8 . . Corruption Purged 6 | . . . . . . . . . . . . . . 6 . . Corruption Blocked . | . . . . . . . . . . . . . . . . . Effects 96 | . . . . . . . 5 1 3 12 21 10 10 34 . . Message Errors 25 | . . . . . . . 2 . 1 1 5 4 1 11 . . Matter Fused 23 | . . . . . . . 1 . 1 4 6 3 3 5 . . Heat Flow Errors 11 | . . . . . . . . . . 3 3 1 . 4 . . Energy Discharges 11 | . . . . . . . . 1 . 3 2 1 1 3 . . Parts Rejected 3 | . . . . . . . 1 . . . . . 1 1 . . Parts Fused 4 | . . . . . . . 1 . 1 . 1 . . 1 . . Data Loss (minor) 8 | . . . . . . . . . . . 3 1 . 4 . . Data Loss (major) 1 | . . . . . . . . . . . 1 . . . . . Alerts 1 | . . . . . . . . . . . . . . 1 . . Misdirections 7 | . . . . . . . . . . 1 . . 4 2 . . Weapon Failures 2 | . . . . . . . . . . . . . . 2 . . Overload Shots . | . . . . . . . . . . . . . . . . . Overflow Damage 1293 | . . 6 90 14 . . 501 . . 37 323 296 . 26 . . Projectiles 99 | . . . 90 . . . 9 . . . . . . . . . Explosions 6 | . . 6 . . . . . . . . . . . . . . Melee 1188 | . . . . 14 . . 492 . . 37 323 296 . 26 . . Knockbacks 12 | . . . . . . . 12 . . . . . . . . . Impact 10 | . . . . . . . 10 . . . . . . . . . Kinetic . | . . . . . . . . . . . . . . . . . Secondary 2 | . . . . . . . 2 . . . . . . . . . Self-Inflicted Damage 101 | 39 . 56 . . . . . . . . . . . 6 . . Shots 3 | 1 . 2 . . . . . . . . . . . . . . Rammed 4 | . . . . . . . . . . . . . . 4 . . Targets Rammed 4 | . . . . . . . . . . . . . . 4 . . Kicked . | . . . . . . . . . . . . . . . . . Crushed . | . . . . . . . . . . . . . . . . . Highest Temperature 273 | 36 54 21 217 5 . . . . . 196 273 222 . 261 . 198 Average Temperature 63 | 10 25 7 74 5 . . . . . 88 119 113 . 86 . 63 Received Heat Transfer 1332 | . . 45 27 63 . 12 . . 9 9 12 . 33 726 . 396 Effects 1 | . . . . . . . . . . . . . . 1 . . Interference 1 | . . . . . . . . . . . . . . 1 . . Siege Activations . | . . . . . . . . . . . . . . . . . Robots Corrupted 2 | . . . 2 . . . . . . . . . . . . . Combat Hostiles . | . . . . . . . . . . . . . . . . . Parts Fried 9 | 2 . . 4 . . . 3 . . . . . . . . . Impact Corruptions 22 | . . . . 1 . . 20 . . 1 . . . . . . Robots Melted . | . . . . . . . . . . . . . . . . . Combat Hostiles . | . . . . . . . . . . . . . . . . . Parts Melted 4 | 1 . . . . . . . . . . . . . 3 . . Heat Transferred 1771 | 100 . 50 731 . . . . . . . . . . 298 . 592 Parts Sabotaged . | . . . . . . . . . . . . . . . . . Parts Stolen . | . . . . . . . . . . . . . . . . . Parts Stripped . | . . . . . . . . . . . . . . . . . Power Chain Reactions 6 | 2 . 1 3 . . . . . . . . . . . . . Alert | -11 -10 -10 -9 -8 -7 -6 -5 -5 -5 -5 -5 -5 -4 -4 -3 -3 ------- Run | Yrd Mat Min Mat Mat Fac Fac Fac Was Fac Upp Upp Zhi Pro Fac Res DSF Peak Influence 376 | 55 77 98 376 359 246 128 140 79 134 . . . . 294 125 123 Initial 163 | . 35 30 37 110 163 120 51 49 55 . . . . 21 125 93 Average 96 | 31 65 59 117 202 199 98 52 57 91 . . . . 108 125 76 Maximum Alert Level 1 | . . . 1 1 1 . . . . . . . . 1 . . Low Security (%) 85 | 100 100 100 77 47 46 100 100 100 100 . . . . 76 100 100 Level 1 14 | . . . 22 52 53 . . . . . . . . 23 . . Level 2 . | . . . . . . . . . . . . . . . . . Level 3 . | . . . . . . . . . . . . . . . . . Level 4 . | . . . . . . . . . . . . . . . . . Level 5 . | . . . . . . . . . . . . . . . . . High Security . | . . . . . . . . . . . . . . . . . Max Security . | . . . . . . . . . . . . . . . . . Squads Dispatched 15 | . 1 . 1 . . 1 3 . . . . . . 7 . 2 Investigation 3 | . . . . . . . . . . . . . . 3 . . Extermination 3 | . . . . . . . 1 . . . . . . 2 . . Reinforcement 9 | . 1 . 1 . . 1 2 . . . . . . 2 . 2 Assault . | . . . . . . . . . . . . . . . . . Garrison . | . . . . . . . . . . . . . . . . . Intercept . | . . . . . . . . . . . . . . . . . Searches Triggered . | . . . . . . . . . . . . . . . . . Construction Impeded . | . . . . . . . . . . . . . . . . . Haulers Reinforced . | . . . . . . . . . . . . . . . . . Active Scanning Responses . | . . . . . . . . . . . . . . . . . Cargo Convoy Interrupts . | . . . . . . . . . . . . . . . . . Stealth | -11 -10 -10 -9 -8 -7 -6 -5 -5 -5 -5 -5 -5 -4 -4 -3 -3 --------- Run | Yrd Mat Min Mat Mat Fac Fac Fac Was Fac Upp Upp Zhi Pro Fac Res DSF Distress Signals 6 | . . . 2 3 . . 1 . . . . . . . . . Communications Jammed . | . . . . . . . . . . . . . . . . . Distress Signals . | . . . . . . . . . . . . . . . . . Times Spotted 193 | . 3 2 21 19 3 6 14 4 7 17 19 . 20 44 . 14 Peak Tracking Total 15 | . 2 2 5 13 3 4 5 4 5 10 6 . 15 6 . 5 Tactical Retreats 27 | . . . . 2 1 3 1 . . 4 3 . 4 6 . 3 Traps | -11 -10 -10 -9 -8 -7 -6 -5 -5 -5 -5 -5 -5 -4 -4 -3 -3 ------- Run | Yrd Mat Min Mat Mat Fac Fac Fac Was Fac Upp Upp Zhi Pro Fac Res DSF Traps Triggered 9 | . . . 2 . . . 6 . . . . . . 1 . . Indirectly . | . . . . . . . . . . . . . . . . . Trap Hack Attempts . | . . . . . . . . . . . . . . . . . Triggered . | . . . . . . . . . . . . . . . . . Disarmed . | . . . . . . . . . . . . . . . . . Reprogrammed . | . . . . . . . . . . . . . . . . . Reused 1 | . . . . . . . . . . . . . . 1 . . Traps Extracted . | . . . . . . . . . . . . . . . . . Installed 3 | . . . . . . . . . . . . . . 3 . . Triggered 7 | . . . . . . . 1 . . 4 1 . . 1 . . Most Traps Carried 3 | . . . . . . . . . . . 3 3 3 3 . . Machines | -11 -10 -10 -9 -8 -7 -6 -5 -5 -5 -5 -5 -5 -4 -4 -3 -3 ---------- Run | Yrd Mat Min Mat Mat Fac Fac Fac Was Fac Upp Upp Zhi Pro Fac Res DSF Machines Disabled 5 | . . . . . . . . . . . . . 1 4 . . Max in Single Turn 4 | . . . . . . . . . . . . . 1 4 . . Garrison Access 2 | . . . . 1 1 . . . . . . . . . . . Machines Repaired . | . . . . . . . . . . . . . . . . . Machines Dismantled . | . . . . . . . . . . . . . . . . . Machines Sabotaged . | . . . . . . . . . . . . . . . . . Overloaded Fab Kills . | . . . . . . . . . . . . . . . . . Hacking | -11 -10 -10 -9 -8 -7 -6 -5 -5 -5 -5 -5 -5 -4 -4 -3 -3 --------- Run | Yrd Mat Min Mat Mat Fac Fac Fac Was Fac Upp Upp Zhi Pro Fac Res DSF Machines Accessed 32 | . . 1 2 6 1 2 3 . 1 1 1 9 . 4 1 . Terminals 13 | . . 1 2 3 . 2 3 . 1 . . . . . 1 . Fabricators 1 | . . . . . . . . . . . . . . 1 . . Repair Stations 2 | . . . . 1 . . . . . . . . . 1 . . Recycling Units 3 | . . . . 1 . . . . . . . . . 2 . . Scanalyzers . | . . . . . . . . . . . . . . . . . Garrison Access 2 | . . . . 1 1 . . . . . . . . . . . Total Hacks 100 | . . 4 6 17 1 3 7 . 2 1 1 48 . 8 2 . Successful 72 | . . 2 3 8 1 3 2 . 1 1 1 48 . 1 1 . Failed 28 | . . 2 3 9 . . 5 . 1 . . . . 7 1 . Catastrophic 4 | . . . 1 . . . . . . . . . . 3 . . Database Lockouts . | . . . . . . . . . . . . . . . . . Manual 17 | . . 4 4 6 . . . . . . . . 1 2 . . Terminals 35 | . . 4 6 11 . 3 7 . 2 . . . . . 2 . Fabricators 1 | . . . . . . . . . . . . . . 1 . . Repair Stations 4 | . . . . 2 . . . . . . . . . 2 . . Recycling Units 8 | . . . . 3 . . . . . . . . . 5 . . Scanalyzers . | . . . . . . . . . . . . . . . . . Garrison Access 2 | . . . . 1 1 . . . . . . . . . . . Terminal Hacks 65 | . . 2 2 4 . 3 2 . 1 1 1 48 . . 1 . Record 36 | . . . . . . . . . . . . 36 . . . . Part Schematic 5 | . . . . . . . 1 . . . . 4 . . . . Robot Analysis 6 | . . 1 1 . . . . . . . . 4 . . . . Prototype ID Bank 8 | . . . . 1 . 1 1 . 1 . . 4 . . . . Open Door 2 | . . . . . . . . . . 1 1 . . . . . Open DSF 1 | . . . . . . . . . . . . . . . 1 . Level Access Points 1 | . . . . . . 1 . . . . . . . . . . Branch Access Points 1 | . . 1 . . . . . . . . . . . . . . Emergency Access Points 1 | . . . 1 . . . . . . . . . . . . . Locate Traps 3 | . . . . 2 . 1 . . . . . . . . . . Registered Components 1 | . . . . 1 . . . . . . . . . . . . Fabricator Hacks . | . . . . . . . . . . . . . . . . . Repair Station Hacks 2 | . . . . 2 . . . . . . . . . . . . Scan Component 1 | . . . . 1 . . . . . . . . . . . . Repair 1 | . . . . 1 . . . . . . . . . . . . Recycling Unit Hacks 1 | . . . . 1 . . . . . . . . . . . . Report Inventory 1 | . . . . 1 . . . . . . . . . . . . Scanalyzer . | . . . . . . . . . . . . . . . . . Garrison Access Hacks 2 | . . . . 1 1 . . . . . . . . . . . Seal Access 2 | . . . . 1 1 . . . . . . . . . . . Unauthorized Hacks 2 | . . . 1 . . . . . . . . . . 1 . . Terminals 1 | . . . 1 . . . . . . . . . . . . . Botnet 1 | . . . 1 . . . . . . . . . . . . . Fabricators . | . . . . . . . . . . . . . . . . . Repair Stations . | . . . . . . . . . . . . . . . . . Recycling Units 1 | . . . . . . . . . . . . . . 1 . . Reject 1 | . . . . . . . . . . . . . . 1 . . Scanalyzers . | . . . . . . . . . . . . . . . . . Garrison Access . | . . . . . . . . . . . . . . . . . Data Cores Recovered 2 | . 1 . . 1 . . . . . . . . . . . . Used 1 | . . . . 1 . . . . . . . . . . . . Hacking Detections 17 | . . 1 2 3 . 2 3 . 1 . . . . 4 1 . Full Trace Events 3 | . . . . . . . . . . . . . . 3 . . Feedback Events 1 | . . . . . . . . . . . . . . 1 . . Corruption 1 | . . . . . . . . . . . . . . 1 . . Feedback Blocked . | . . . . . . . . . . . . . . . . . Robot Schematics Acquired . | . . . . . . . . . . . . . . . . . Robots Built . | . . . . . . . . . . . . . . . . . Authchips . | . . . . . . . . . . . . . . . . . Time . | . . . . . . . . . . . . . . . . . Total Robot Build Rating . | . . . . . . . . . . . . . . . . . Part Schematics Acquired 5 | . . . . . . . 1 . . . . 4 . . . . Parts Built . | . . . . . . . . . . . . . . . . . Authchips . | . . . . . . . . . . . . . . . . . Time . | . . . . . . . . . . . . . . . . . Total Part Build Rating . | . . . . . . . . . . . . . . . . . Parts Repaired 1 | . . . . 1 . . . . . . . . . . . . Time 26 | . . . . 26 . . . . . . . . . . . . Parts Recycled . | . . . . . . . . . . . . . . . . . Recycled Matter . | . . . . . . . . . . . . . . . . . Retrieved Matter . | . . . . . . . . . . . . . . . . . Retrieved Components . | . . . . . . . . . . . . . . . . . Parts Scanalyzed . | . . . . . . . . . . . . . . . . . Part Schematics Acquired . | . . . . . . . . . . . . . . . . . Parts Damaged . | . . . . . . . . . . . . . . . . . Bothacking | -11 -10 -10 -9 -8 -7 -6 -5 -5 -5 -5 -5 -5 -4 -4 -3 -3 ------------ Run | Yrd Mat Min Mat Mat Fac Fac Fac Was Fac Upp Upp Zhi Pro Fac Res DSF Used RIF Installer . | . . . . . . . . . . . . . . . . . Robots Hacked . | . . . . . . . . . . . . . . . . . Non-combat . | . . . . . . . . . . . . . . . . . Combat . | . . . . . . . . . . . . . . . . . Robot Hacks Applied . | . . . . . . . . . . . . . . . . . Relay Couplers Released . | . . . . . . . . . . . . . . . . . Fabnet Peak Effective % . | . . . . . . . . . . . . . . . . . Robots Rewired . | . . . . . . . . . . . . . . . . . Allies Hacked . | . . . . . . . . . . . . . . . . . Hacks Repelled . | . . . . . . . . . . . . . . . . . Allies | -11 -10 -10 -9 -8 -7 -6 -5 -5 -5 -5 -5 -5 -4 -4 -3 -3 -------- Run | Yrd Mat Min Mat Mat Fac Fac Fac Was Fac Upp Upp Zhi Pro Fac Res DSF Total Allies 3 | . . . . . . . . . . . 3 . . . . . Largest Group 3 | . . . . . . . . . . . 3 . . . . . Highest-Rated Group 93 | . . . . . . . . . . . 93 . . . . . Highest-Rated Ally 31 | . . . . . . . . . . . 31 . . . . . Total Orders . | . . . . . . . . . . . . . . . . . Ally Attacks 13 | . . . . . . . . . . . 13 . . . . . Total Damage 213 | . . . . . . . . . . . 213 . . . . . Kills 4 | . . . . . . . . . . . 4 . . . . . Allies Corrupted . | . . . . . . . . . . . . . . . . . Allies Melted . | . . . . . . . . . . . . . . . . . Intel | -11 -10 -10 -9 -8 -7 -6 -5 -5 -5 -5 -5 -5 -4 -4 -3 -3 ------- Run | Yrd Mat Min Mat Mat Fac Fac Fac Was Fac Upp Upp Zhi Pro Fac Res DSF Robot Analysis Total 6 | . . 1 1 . . . . . . . . 4 . . . . Derelict Logs Recovered 4 | . . . . . . . . . . 1 2 . 1 . . . Drone Launches . | . . . . . . . . . . . . . . . . . Drone Recoveries . | . . . . . . . . . . . . . . . . . Exploration | -11 -10 -10 -9 -8 -7 -6 -5 -5 -5 -5 -5 -5 -4 -4 -3 -3 ------------- Run | Yrd Mat Min Mat Mat Fac Fac Fac Was Fac Upp Upp Zhi Pro Fac Res DSF Turns Passed 6750 | 398 42 234 900 339 195 598 1081 41 75 261 464 252 188 1345 8 329 Spaces Moved 6626 | 222 33 164 417 435 269 860 578 95 152 445 799 350 442 1169 9 187 Core 68 | 1 . . 1 . . . . . . . . . . 14 9 43 Treads 184 | 180 . . . . . . . . . . . . . 4 . . Legs 328 | . . . . . . . . . . . . . . 288 . 40 Wheels 499 | 41 33 164 261 . . . . . . . . . . . . . Hover 2360 | . . . . . 185 860 494 . . . . . . 821 . . Flight 3187 | . . . 155 435 84 . 84 95 152 445 799 350 442 42 . 104 Fastest Speed 24 | 50 90 80 37 34 31 48 37 37 37 37 37 29 24 26 50 29 Average Speed 60 | 145 90 85 83 34 43 48 66 37 37 39 44 53 29 82 50 114 Slowest Speed 650 | 160 90 90 440 104 120 48 120 37 37 120 120 120 34 240 50 650 Overloaded Moves 66 | . . . . . . . . . . . . . 25 41 . . Propulsion Burnouts . | . . . . . . . . . . . . . . . . . Robots Hopped 2 | . . . 1 1 . . . . . . . . . . . . Cave-ins Triggered 1 | . . . . . . . . . . . . . . . . 1 Teleports 1 | . . . . . . . . . . . . 1 . . . . Exploration Rate (%) 40 | 9 18 21 31 34 11 24 15 85 7 73 72 63 65 24 . 94 Regions Visited 16 Branch Regions 5 Pre-discovered Areas 3 | . . . . . . . . . . . . 3 . . . . Known Exits Taken 4 | . . . . . . 1 . . . 1 . . . 1 1 . Unknown Exits Taken 10 | 1 1 1 1 1 1 . . . 1 . 1 1 1 . . . Scrap Searched 6 | . . . . . . . . . . 3 2 . 1 . . . Spaces Dug 70 | . . . 2 4 8 18 18 . 4 . 3 1 . 6 . 6 Terrain Destroyed 151 | 6 . 56 14 4 8 18 18 . 4 . 3 1 . 13 . 6 Melee 70 | . . . 2 4 8 18 18 . 4 . 3 1 . 6 . 6 Projectile 7 | . . . . . . . . . . . . . . 7 . . AOE 74 | 6 . 56 12 . . . . . . . . . . . . . Terrain Rammed . | . . . . . . . . . . . . . . . . . Walls Destroyed . | . . . . . . . . . . . . . . . . . Machines Disabled . | . . . . . . . . . . . . . . . . . Actions | -11 -10 -10 -9 -8 -7 -6 -5 -5 -5 -5 -5 -5 -4 -4 -3 -3 --------- Run | Yrd Mat Min Mat Mat Fac Fac Fac Was Fac Upp Upp Zhi Pro Fac Res DSF Total 8788 | 262 37 241 930 579 321 1017 1186 101 163 523 881 405 490 1380 11 261 Wait 1368 | 2 . 60 421 98 14 106 468 . 4 71 58 . 36 22 . 8 Move 6607 | 221 32 163 414 432 268 859 578 94 151 444 798 349 441 1168 8 187 Hop 2 | . . . 1 1 . . . . . . . . . . . . Pick Up 58 | 3 1 2 11 1 7 8 4 2 1 . 2 7 . 7 . 2 Fast Attach 163 | 11 . 2 15 9 4 5 6 1 . 3 3 18 3 53 . 30 Attach 42 | . . 2 9 4 3 3 4 1 . . 1 2 2 8 3 . Detach 38 | 4 . 1 4 3 2 . 4 . . . 2 5 3 5 . 5 Swap 21 | 2 . . 3 1 1 4 1 . 2 1 1 . . 4 . 1 Drop 111 | 3 . . 23 3 6 14 5 3 1 2 2 17 1 22 . 9 Fire 106 | 16 4 11 26 6 . . . . . . . . 3 27 . 13 Melee 201 | . . . 3 21 16 18 52 . 4 2 14 7 1 57 . 6 Ram 4 | . . . . . . . . . . . . . . 4 . . Kick . | . . . . . . . . . . . . . . . . . Crush . | . . . . . . . . . . . . . . . . . Escape Stasis 64 | . . . . . . . 64 . . . . . . . . . Rewire . | . . . . . . . . . . . . . . . . . Trap 3 | . . . . . . . . . . . . . . 3 . . Miscellaneous . | . . . . . . . . . . . . . . . . . Route ------- -11/Scrapyard -10/Materials -10/Mines -9/Materials -8/Materials -7/Factory -6/Factory (discovered 4 exits: *Fac x4) -5/Factory -5/Waste -5/Factory -5/Upper Caves -5/Upper Caves -5/Zhirov -4/Proximity Caves -4/Factory (discovered 3 exits: *Res x2 / Ext) -3/Research (discovered 2 exits: Arm / DSF) -3/DSF (discovered 1 exit: [*Res]) History --------- Turn | Location | Event 13 | -11/Scrapyard | Discovered new exit (range 16) 399 | -11/Scrapyard | Entered Materials 417 | -10/Materials | Build established: Mutant 418 | -10/Materials | Discovered new exit (range 15) 441 | -10/Materials | Entered Mines 610 | -10/Mines | Received a Rocket Launcher from a helpful Derelict 649 | -10/Mines | Lost 3 parts (2n1w) 669 | -10/Mines | Discovered new exit (range 4) 675 | -10/Mines | Entered Materials 675 | -9/Materials | Evolved 2 slots: Utility x2 1314 | -9/Materials | Discovered new exit (range 9) 1575 | -9/Materials | Entered another Materials area 1575 | -8/Materials | Evolved 2 slots: Power x1, Propulsion x1 1668 | -8/Materials | Repaired Seismic Detector 1904 | -8/Materials | Discovered new exit (range 6) 1914 | -8/Materials | Entered Factory 1914 | -7/Factory | Evolved 2 slots: Propulsion x1, Utility x1 2098 | -7/Factory | Discovered new exit (range 16) 2109 | -7/Factory | Entered another Factory area 2109 | -6/Factory | Evolved 2 slots: Utility x2 2264 | -6/Factory | Build established: Hacker-Mutant 2327 | -6/Factory | Noticed a derelict Sapper rigging charges 2656 | -6/Factory | Identified exit to Factory 2707 | -6/Factory | Entered another Factory area 2707 | -5/Factory | Evolved 2 slots: Utility x2 3659 | -5/Factory | Lost 4 parts (1p1n2u) 3788 | -5/Factory | Sucked down chute 3788 | -5/Factory | Entered Waste 3794 | -5/Waste | Spotted C-40 Crusher 3794 | -5/Waste | Spotted C-40 Crusher 3802 | -5/Waste | Spotted C-40 Crusher 3803 | -5/Waste | EMP discharged 3803 | -5/Waste | System corruption reached 10% 3816 | -5/Waste | Spotted C-40 Crusher 3818 | -5/Waste | Discovered new exit (range 22) 3818 | -5/Waste | Spotted C-40 Crusher 3829 | -5/Waste | Entered Factory 3849 | -5/Factory | Spotted B-75 Beast 3901 | -5/Factory | Discovered new exit (range 6) 3904 | -5/Factory | Entered Upper Caves 3907 | -5/Upper Caves | Identified exit to Upper Caves 3925 | -5/Upper Caves | Attracted the attention of an 0b10 checkpoint 4164 | -5/Upper Caves | Ambushed by research squad 4165 | -5/Upper Caves | Entered another Upper Caves area 4167 | -5/Upper Caves | Learned location of 1 exit from Factory 4207 | -5/Upper Caves | A Commander dispatched an escort 4418 | -5/Upper Caves | Build established: Hacker-Gladiator 4537 | -5/Upper Caves | Learned location of 1 exit from Factory 4626 | -5/Upper Caves | Discovered new exit (range 8) 4629 | -5/Upper Caves | Entered Zhirov 4629 | -5/Zhirov | Discovered new exit (range 3) 4640 | -5/Zhirov | Met Zhirov 4650 | -5/Zhirov | Found Alien Artifact 4650 | -5/Zhirov | Identified Transdimensional Reconstructor 4650 | -5/Zhirov | Warped through subspace 4734 | -5/Zhirov | Found Alien Artifact 4779 | -5/Zhirov | Learned location of Quarantine (-2) 4779 | -5/Zhirov | Learned location of Testing (-3) 4779 | -5/Zhirov | Learned location of Command (-1) 4788 | -5/Zhirov | Zhirov requested help retrieving the SGEMP Prototype 4813 | -5/Zhirov | Identified Integrated Reactor 4813 | -5/Zhirov | Installed Integrated Reactor, increased core energy generation (+10) 4881 | -5/Zhirov | Entered Proximity Caves 4994 | -4/Proximity Caves | Attracted the attention of an 0b10 checkpoint 5012 | -4/Proximity Caves | Acquired the password to a Derelict Tinkerer's latest research 5017 | -4/Proximity Caves | Found Prototype Special Weapon 5017 | -4/Proximity Caves | Identified Molecular Deconstructor 5068 | -4/Proximity Caves | Discovered new exit (range 6) 5069 | -4/Proximity Caves | Entered Factory 5069 | -4/Factory | Evolved 2 slots: Propulsion x1, Utility x1 5070 | -4/Factory | Identified exit to Extension 5070 | -4/Factory | Identified exit to Research 5129 | -4/Factory | Lost 7 parts (1p2n3u1w) 5356 | -4/Factory | Lost 8 parts (5n3u) 5568 | -4/Factory | Lost 13 parts (3p5n4u1w) 5650 | -4/Factory | System corruption reached 10% 5799 | -4/Factory | Build established: Mutant 5918 | -4/Factory | Core integrity fell below 50% 6374 | -4/Factory | Lost 3 parts (1n2u) 6401 | -4/Factory | Discovered exit to Research (range 22) 6409 | -4/Factory | Core integrity fell below 20% 6414 | -4/Factory | Entered Research 6414 | -3/Research | Evolved 2 slots: Propulsion x2 6415 | -3/Research | Identified exit to Armory 6418 | -3/Research | Identified exit to DSF 6422 | -3/Research | Entered DSF 6426 | -3/DSF | Found Enh. Force Lance 6430 | -3/DSF | Found Enh. Force Lance 6438 | -3/DSF | Lost 7 parts (2p3n2u) 6438 | -3/DSF | Discovered new exit (range 20) 6462 | -3/DSF | Additional patrols routed to DSF 6545 | -3/DSF | Core integrity fell below 50% 6565 | -3/DSF | Lost 6 parts (2p3u1w) 6675 | -3/DSF | Core integrity fell below 20% 6713 | -3/DSF | Crushed by falling debris 6733 | -3/DSF | Found Enh. Force Lance 6735 | -3/DSF | Found Enh. Force Lance 6738 | -3/DSF | Found Enh. Force Lance 6751 | -3/DSF | Destroyed by H-77 Assassin with High-powered Shotgun Last Messages --------------- 06729_ Slug penetrates Wall. 06729_ Slug penetrates Matter Repository. 06729_ Penetrated by Slug. 06729_ Field Propulsion Drive destroyed. 06729_ Slug penetrates Matter Repository. 06729_ Field Propulsion Drive destroyed. 06730_ Acquired 94 matter. 06733_ Acquired Enh. Force Lance. 06735_ Slug penetrates Wall. 06735_ Acquired Enh. Force Lance. 06736_ Slug penetrates Wall. 06737_ Dropped Force Lance. 06738_ Acquired Enh. Force Lance. 06739_ Slug penetrates Wall. 06749_ Core Analyzer destroyed. 06749_ Graphene Brace destroyed. 06750_ Acquired Mic. Antimatter Reactor. 06751_ C-30 ARC bursts open, deploying its payload. 06751_ H-77 Assassin unfolds itself. 06751_ Penetrated by Slug. Map ----- +----------------------------------------------------+ | ????????????#????????????#""?????????? | | ????????????# ???????????#"#?????????? | | ????????#####"###???????##"####??????? | | ????###?# !!#########"%%%"#??????? | | ## #]]]# ! #///# ##""%%"#??????? | | %%""##"#???? | | """""#???? | | ##]]#]]]### ### #//## " ""####???? | | ?#??#]]?### ### #//### "###??????? | | ????##??#==! ##########" ##???????? | | ?????####= #??????#// /#???????? | | ???###"#" = #??????#// /#???????? | | ####]]####" ###??????### ##???????? | | ]#""]]#??!! !!#??????# /#???????? | | ]"# ##!! !!#??????# / /#???????? | | ]## ## ##!! !!#??????# / /#???????? | | ###+##/#### ###?######## ###??????? | | #[[[#!!!### ###===# ## ]]#??????? | | #[[[#!!!## ##===# "# ]]#??????? | | #??????? | | H #??????? | | #??????? | | # #!!!## ##!!!#!!!## % #??????? | | # #!!!### ###!!?#!!!?# #??????? | | ########### ###???###### ###??????? | | ????????#!! [[########*@ #???????? | | ????????#!! [[# +* #???????? | | ????????#!! [[### ##* #???????? | | ????????##" % ###?# [ #### ##???????? | | ????????# #?###*##** #???????? | | ????????# #???# ##** #???????? | | ????????# #####"#### ##???????? | | ????????##" ###***#*%### ###??????? | | ????????#""% ###***# *## ""####???? | | ????????# == !! *% h"""""#???? | | ????????# % *[*[ ^ ] %<""##?????? | | ????????#//===!!# # %##"""""#??????? | | ????????#/ ===!!#########"""""#??????? | | ????????#########???????##"####??????? | | ?????????????????????????#"#?????????? | | ??????????????????????????""?????????? | | ??????????????????????????###????????? | | ?????????????????????????????????????? | | ?????????????????????????????????????? | | ?????????????????????????????????????? | | ?????????????????????????????????????? | | | | | | | | | +----------------------------------------------------+ Best States ------------- Heat Dissipation 65 Energy Generation 47 Energy Capacity 550 Matter Stores 317 Matter Capacity 350 Sight Range 22 Terrain Scan Range 16 Terrain Scan Density 160 ECM Strength 2 Armor Coverage 225 Resistance: KI 25 Resistance: TH 20 Resistance: EM 15 Power Shielding 90 Propulsion Shielding 66 Phase Shifting 10 Evasion (%) 74 Targeting Accuracy 16 Melee Accuracy 24 Target Analysis 11 Core Analysis 6 Armor Integrity Analysis 30 Recoil Reduction 2 Kinecelleration 40 Offensive Hacking 20 Defensive Hacking 14 Trap Extractor Capacity 6 Item Schematics ----------------- Impulse Thruster | -5/Factory | Hacked Assault Drone Bay | -5/Zhirov | Free Exp. Heat Sink | -5/Zhirov | Free Exp. Optical Array | -5/Zhirov | Free Imp. Arc Thrower | -5/Zhirov | Free Robot Schematics ------------------ None Fabricated ------------ Nothing Alien Tech Used ----------------- Transdimensional Reconstructor Integrated Reactor Achievements -------------- Alien Tech Subspace Traveler The Science Guy Challenges ------------ None Game ------ Seed FlyingLatentPurifier Manual? 0 Play Time 01:26:58 Cumulative 69.4 hours Start 2024.05.28 @ 15:46:50 End 2024.05.28 @ 17:13:59 Sessions 1 Manual Loads 0 Difficulty Rogue Special Mode None Game No. 76 Rogue 70 Adventurer 6 Explorer 0 Win Type - Total 0 Types 0/0/0/0/0/0/0/0/0 Lore% 33 Gallery% 47 Achievement% 34 Wizard Run 0 Options --------- Layout 0 ASCII 0 Keyboard 1 Movement Numpad Keybinds 0 Fullscreen 0 Font 14/Smallcaps Map View 76x50 Zoom Use 0% Tactical HUD 1 Map Filters NONE Filters NONE Steam 1 RUN: 6598fc7b-297a-4821-bb88-0a218d59b688